fUSD/lending_fUSD_20240327
["ID","MTS","AMOUNT","RATE_DAILY","PERIOD"]
[320808730,1711563051898,-500.0,0.00054794,120]
[320808731,1711563051909,-500.0,0.00054794,120]
[320808732,1711563051919,-500.0,0.00054794,120]
[320808733,1711563051929,-500.0,0.00054794,120]
[320808734,1711563051939,-605.7,0.00054794,120]
[320808735,1711563051949,-500.0,0.00054794,120]
[320808736,1711563051959,-500.0,0.00054794,120]
[320808737,1711563051969,-500.0,0.00054794,120]
[320808738,1711563051980,-500.0,0.00054794,120]
[320808739,1711563051989,-576.08,0.00054794,21]
[320808740,1711563051999,-508.93,0.00054794,120]
[320808741,1711563052009,-523.9,0.00054794,120]
[320808742,1711563052019,-368.84,0.00054794,120]
[320808743,1711563052030,-500.0,0.00054794,120]
[320808744,1711563052039,-500.0,0.00054794,120]
[320808745,1711563052049,-713.37,0.00054794,120]
[320808746,1711563052058,-296.53,0.00054794,120]
[320808747,1711563052068,-500.0,0.00054794,120]
[320808748,1711563052079,-500.0,0.00054794,120]
[320808749,1711563052089,-500.0,0.00054794,120]
[320808750,1711563052104,-500.0,0.00054794,120]
[320808751,1711563052113,-1000.0,0.00054794,120]
[320808752,1711563052124,-500.0,0.00054794,120]
[320808753,1711563052135,-500.0,0.00054794,120]
[320808754,1711563052147,-500.0,0.00054794,120]
[320808755,1711563052156,-500.0,0.00054794,120]
[320808756,1711563052166,-500.0,0.00054794,120]
[320808757,1711563052175,-500.0,0.00054794,120]
[320808758,1711563052185,-1074.03350109,0.00054794,120]
[320808759,1711563052194,-307.64,0.00054794,120]
[320808760,1711563052205,-500.0,0.00054794,120]
[320808761,1711563052215,-500.0,0.00054794,120]
[320808762,1711563052225,-647.08,0.00054794,120]
[320808763,1711563052236,-1962.39,0.00054794,120]
[320808764,1711563052249,-500.0,0.00054794,120]
[320808765,1711563052258,-503.87,0.00054794,120]
[320808766,1711563052268,-599.18,0.00054794,120]
[320808767,1711563052277,-423.58,0.00054794,120]
[320808768,1711563052287,-728.48,0.00054794,120]
[320808769,1711563052298,-314.91,0.00054794,120]
[320808770,1711563052308,-443.28,0.00054794,120]
[320808771,1711563052318,-1756.27,0.00054794,120]
[320808772,1711563052330,-500.0,0.00054794,120]
[320808773,1711563052341,-500.0,0.00054794,120]
[320808774,1711563052354,-233.8,0.00054794,120]
[320808775,1711563052369,-500.0,0.00054794,120]
[320808776,1711563052379,-500.0,0.00054794,120]
[320808777,1711563052390,-607.09,0.00054794,120]
[320808778,1711563052401,-500.0,0.00054794,120]
[320808779,1711563052412,-500.0,0.00054794,120]
[320808780,1711563052423,-500.0,0.00054794,120]
[320808781,1711563052434,-577.04,0.00054794,120]
[320808782,1711563052445,-395.79,0.00054794,120]
[320808783,1711563052457,-500.0,0.00054794,120]
[320808784,1711563052468,-179.72,0.00054794,120]
[320808785,1711563052478,-500.0,0.00054794,120]
[320808786,1711563052488,-500.0,0.00054794,120]
[320808787,1711563052499,-310.29,0.00054794,120]
[320808788,1711563052510,-500.0,0.00054794,120]
[320808789,1711563052521,-500.0,0.00054794,120]
[320808790,1711563052532,-500.0,0.00054794,120]
[320808791,1711563052543,-500.0,0.00054794,120]
[320808792,1711563052554,-500.0,0.00054794,120]
[320808793,1711563052563,-500.0,0.00054794,120]
[320808794,1711563052575,-500.0,0.00054794,120]
[320808795,1711563052585,-500.0,0.00054794,120]
[320808796,1711563052597,-500.0,0.00054794,120]
[320808797,1711563052608,-500.0,0.00054794,120]
[320808798,1711563052618,-500.0,0.00054794,120]
[320808799,1711563052629,-500.0,0.00054794,120]
[320808800,1711563052639,-273.49,0.00054794,120]
[320808801,1711563052650,-500.0,0.00054794,120]
[320808802,1711563052661,-1513.76,0.00054794,120]
[320808803,1711563052672,-500.0,0.00054794,120]
[320808804,1711563052685,-362.61,0.00054794,120]
[320808805,1711563052696,-500.0,0.00054794,120]
[320808806,1711563052707,-500.0,0.00054794,120]
[320808807,1711563052718,-1462.93,0.00054794,120]
[320808808,1711563052728,-500.0,0.00054794,120]
[320808809,1711563052739,-500.0,0.00054794,120]
[320808810,1711563052751,-500.0,0.00054794,120]
[320808811,1711563052760,-500.0,0.00054794,120]
[320808812,1711563052770,-500.0,0.00054794,120]
[320808813,1711563052779,-500.0,0.00054794,120]
[320808814,1711563052787,-500.0,0.00054794,120]
[320808815,1711563052796,-500.0,0.00054794,120]
[320808816,1711563052806,-500.0,0.00054794,120]
[320808817,1711563052815,-520.14,0.00054794,120]
[320808818,1711563052824,-500.0,0.00054794,120]
[320808819,1711563052836,-885.66,0.00054794,120]
[320808820,1711563052848,-500.0,0.00054794,120]
[320808821,1711563052859,-500.0,0.00054794,120]
[320808822,1711563052871,-957.76,0.00054794,120]
[320808823,1711563052881,-1024.11,0.00054794,120]
[320808824,1711563052890,-500.0,0.00054794,120]
[320808825,1711563052900,-500.0,0.00054794,120]
[320808826,1711563052911,-252.37129342,0.00054794,120]
[320808827,1711563053173,-247.62870658,0.00054794,120]
[320808828,1711563053184,-442.06486142,0.00054794,120]
[320808829,1711563053199,-57.93513858,0.00054794,120]
[320808830,1711563053210,-500.0,0.00054794,120]
[320808831,1711563053222,-369.83486142,0.00054794,120]
[320808832,1711563053234,-130.16513858,0.00054794,120]
[320808833,1711563053248,-500.0,0.00054794,120]
[320808834,1711563053258,-38.21710439,0.00054794,120]
[320808835,1711563053281,-615.94289561,0.00054794,120]
[320808836,1711563053292,-500.0,0.00054794,120]
[320808837,1711563053302,-400.99117923,0.00054794,120]
[320808838,1711563053498,-535.11,0.00054246,120]
[320808839,1711563053508,-500.0,0.00054246,120]
[320808840,1711563053518,-1.249582,0.00054246,120]
[320808841,1711563053535,-500.2722051,0.00054246,120]
[320808842,1711563053545,-310.17267851,0.00054246,120]
[320808843,1711563130870,-223.94252704,0.00024,2]
[320808844,1711563228731,152.13638987,0.00040699,35]
[320809122,1711564170110,-250.0,0.00027,3]
[320809124,1711564170130,-300.0,0.00029,3]
[320809163,1711564233080,-300.0,0.00036396,2]
[320809164,1711564233091,-91.1246881,0.00036497,2]
[320809165,1711564233108,-259.00982467,0.00036497,2]
[320809166,1711564233117,-155.0,0.00036497,4]
[320809167,1711564233127,-198.92175315,0.00036497,4]
[320809168,1711564233148,-150.0,0.00036498,2]
[320809169,1711564233160,-19666.01550526,0.00036499,10]
[320809170,1711564233170,-1560.78721284,0.00039866,4]
[320809171,1711564233180,-192.22165366,0.0004,2]
[320809172,1711564233191,-189.45,0.00040022,30]
[320809173,1711564233201,-285.2085704,0.00040546,2]
[320809174,1711564233212,-285.2085704,0.00040546,2]
[320809175,1711564233222,-14783.17690962,0.00040556,2]
[320809176,1711564233241,-468.52928866,0.00040556,2]
[320809177,1711564233255,-2160.29693094,0.00040556,2]
[320809178,1711564233268,-778.90488926,0.00040556,2]
[320809179,1711564233282,-4288.496562,0.00040556,2]
[320809180,1711564233309,-319.24149127,0.00040556,2]
[320809181,1711564233321,-357.46371413,0.00040556,2]
[320809182,1711564233334,-3427.45,0.00040556,2]
[320809185,1711564233348,-287.6684231,0.00040556,2]
[320809187,1711564233363,-312.06068321,0.00040556,2]
[320809189,1711564233376,-879.76098058,0.00040556,2]
[320809192,1711564233389,-941.51098125,0.00040556,2]
[320809198,1711564233420,-372.25889559,0.00040556,2]
[320809201,1711564233433,-1862.88904276,0.00040556,2]
[320809204,1711564233446,-2142.48428039,0.00040556,2]
[320809233,1711564238298,-410.706,0.00040556,2]
[320809236,1711564238311,-66207.10092724,0.00040556,2]
[320809238,1711564238321,-372.73,0.00040556,2]
[320809240,1711564238331,-150.0,0.0004068,2]
[320809242,1711564238341,-266.459301,0.0004068,2]
[320809244,1711564238351,-169.93,0.00042057,2]
[320809246,1711564238362,-152.0,0.00045204,120]
[320809248,1711564238373,-244.0,0.000473,2]
[320809251,1711564238383,-285.2085704,0.00047644,2]
[320809253,1711564238397,-14785.53353319,0.00047654,2]
[320809294,1711564238709,-1371.992276,0.00047654,2]
[320809297,1711564238720,-3019.99302096,0.00047654,2]
[320809301,1711564238732,-267.6,0.00047654,2]
[320809465,1711564240292,-2117.1056,0.00040456,2]
[320809466,1711564240302,-4454.88116985,0.00047654,2]
[320809467,1711564240312,-500.0,0.00047708,2]
[320809468,1711564240322,-199.53,0.00047806,120]
[320809469,1711564240331,-285.2085704,0.0004798,2]
[320809470,1711564240341,-285.2085704,0.0004798,2]
[320809471,1711564240350,-25641.16498242,0.0004799,2]
[320809472,1711564240362,-323.65,0.00048254,2]
[320809473,1711564240371,-436.72862199,0.00049,2]
[320809474,1711564240383,-1490.99989217,0.00049,2]
[320809475,1711564240403,-1375.61586275,0.00049,2]
[320809476,1711564240413,-285.2085704,0.00049124,7]
[320809477,1711564240423,-1834.32094045,0.00049132,2]
[320809478,1711564240434,-2212.77637878,0.00049132,2]
[320809479,1711564240443,-157.27631021,0.00049133,4]
[320809480,1711564240452,-10000.0,0.00049134,30]
[320809481,1711564240462,-2641.26513815,0.0005,30]
[320809482,1711564240471,-5000.0,0.0005,30]
[320809483,1711564240481,-285.2085704,0.00050037,30]
[320809484,1711564240489,-285.2085704,0.00050037,30]
[320809485,1711564240498,-8529.7061071,0.00050047,2]
[320809486,1711564240518,-17111.45887529,0.00050047,2]
[320809487,1711564240527,-150.0,0.00050259,10]
[320809488,1711564240537,-323.65,0.00050518,2]
[320809489,1711564240548,-2371.36,0.00050766,45]
[320809490,1711564240559,-183.0,0.00050947,2]
[320809491,1711564240570,-285.2085704,0.0005099,30]
[320809492,1711564240579,-4260.32816524,0.00051,120]
[320809493,1711564240589,-16261.0,0.00051,120]
[320809494,1711564240598,-151.15404747,0.00051091,60]
[320809495,1711564240609,-500.0,0.00051099,120]
[320809496,1711564240618,-314.79011526,0.00051099,120]
[320809497,1711564240627,-439.85884348,0.00051099,120]
[320809498,1711564240637,-376.21907633,0.00051099,120]
[320809499,1711564240646,-158.3463532,0.00051283,60]
[320809500,1711564240655,-285.2085704,0.00051543,30]
[320809501,1711564240664,-157.032803,0.00051748,110]
[320809502,1711564240673,-157.032803,0.00051748,110]
[320809503,1711564240682,-15031.08953581,0.00052,12]
[320809504,1711564240692,-283.08,0.00052,120]
[320809505,1711564240701,-2532.0,0.00052,120]
[320809506,1711564240711,-158.3463532,0.00052027,60]
[320809507,1711564240720,-25641.16498239,0.00052103,2]
[320809508,1711564240730,-151.15404747,0.00052133,60]
[320809510,1711564240740,-173.032803,0.00052148,111]
[320809512,1711564240750,-173.032803,0.00052148,111]
[320809513,1711564240759,-161.97290236,0.00052176,60]
[320809514,1711564240769,-165.07861186,0.0005225,60]
[320809515,1711564240778,-150.0,0.000523,11]
[320809517,1711564240788,-150.0,0.00052308,120]
[320809518,1711564240798,-173.032803,0.00052448,111]
[320809520,1711564240808,-173.032803,0.00052448,111]
[320809522,1711564240817,-1000.0,0.0005257,120]
[320809523,1711564240827,-3179.39,0.00052571,120]
[320809524,1711564240837,-1000.0,0.00052571,120]
[320809525,1711564240846,-250.0,0.00052571,120]
[320809526,1711564240855,-190.77,0.00052571,2]
[320809527,1711564240868,-250.0,0.00052571,110]
[320809528,1711564240877,-188.67,0.00052571,120]
[320809529,1711564240887,-250.0,0.00052571,120]
[320809530,1711564240896,-552.0,0.00052603,120]
[320809531,1711564240905,-562.0,0.00052603,120]
[320809532,1711564240914,-150.0,0.000527,11]
[320809533,1711564240924,-173.032803,0.00052748,111]
[320809534,1711564240933,-173.032803,0.00052748,111]
[320809535,1711564240942,-323.65,0.00052782,2]
[320809536,1711564240951,-150.0,0.000528,11]
[320809537,1711564240960,-562.0,0.00052876,120]
[320809538,1711564240969,-205.56929766,0.00053,90]
[320809539,1711564240979,-2500.0,0.00053,120]
[320809540,1711564240989,-174.91555078,0.0005308,14]
[320809541,1711564240998,-173.032803,0.00053148,112]
[320809542,1711564241007,-173.032803,0.00053148,112]
[320809543,1711564241017,-564.0,0.0005315,120]
[320809544,1711564241026,-591.79559753,0.00053159,4]
[320809545,1711564241035,-1362.85766619,0.00053159,4]
[320809546,1711564241044,-500.0,0.00053179,120]
[320809547,1711564241055,-604.0,0.0005318,120]
[320809548,1711564241064,-1266.0,0.0005318,120]
[320809549,1711564241073,-802.0,0.0005318,120]
[320809550,1711564241082,-278.0,0.0005318,120]
[320809551,1711564241091,-433.0,0.0005318,120]
[320809552,1711564241100,-1137.0,0.0005318,120]
[320809553,1711564241112,-358.0,0.0005318,120]
[320809554,1711564241121,-1461.0,0.0005318,120]
[320809555,1711564241130,-2958.0,0.0005318,120]
[320809556,1711564241139,-150.0,0.0005318,120]
[320809557,1711564241148,-1625.0,0.0005318,120]
[320809558,1711564241162,-2422.0,0.0005318,120]
[320809559,1711564241171,-213.0,0.0005318,2]
[320809560,1711564241180,-2418.0,0.0005318,120]
[320809561,1711564241194,-4769.0,0.0005318,120]
[320809562,1711564241203,-1380.0,0.0005318,120]
[320809563,1711564241213,-5677.0,0.0005318,120]
[320809564,1711564241223,-8944.15225276,0.0005318,120]
[320809565,1711564241236,-33998.84774724,0.0005318,120]
[320809566,1711564241246,-1175.0,0.0005318,120]
[320809567,1711564241256,-457.0,0.0005318,120]
[320809568,1711564241265,-2448.0,0.0005318,120]
[320809569,1711564241274,-961.0,0.0005318,120]
[320809570,1711564241283,-1046.0,0.0005318,120]
[320809571,1711564241294,-150.0,0.0005318,120]
[320809572,1711564241303,-150.0,0.000532,11]
[320809573,1711564241313,-150.0,0.000533,11]
[320809574,1711564241322,-154.13762474,0.00053305,60]
[320809575,1711564241331,-1000.0,0.00053392,120]
[320809576,1711564241340,-173.032803,0.00053448,112]
[320809577,1711564241350,-173.032803,0.00053448,112]
[320809578,1711564241359,-414.95,0.00053478,30]
[320809579,1711564241368,-379.99,0.00053512,30]
[320809580,1711564241377,-380.0,0.00053524,30]
[320809581,1711564241388,-380.0,0.00053536,30]
[320809582,1711564241398,-380.0,0.00053539,30]
[320809583,1711564241407,-380.0,0.00053541,30]
[320809584,1711564241418,-333.05,0.00053546,30]
[320809585,1711564241427,-380.0,0.00053548,30]
[320809586,1711564241436,-380.0,0.00053549,30]
[320809587,1711564241445,-157.9861274,0.00053668,60]
[320809588,1711564241454,-3750.0,0.000537,2]
[320809589,1711564241464,-968.32922345,0.000537,2]
[320809590,1711564241473,-326.0,0.000537,2]
[320809591,1711564241482,-150.0,0.000537,11]
[320809592,1711564241491,-173.032803,0.00053748,112]
[320809593,1711564241500,-173.032803,0.00053748,112]
[320809594,1711564241509,-386.60453288,0.0005375,30]
[320809595,1711564241518,-150.0,0.000538,11]
[320809596,1711564241527,-165.07861186,0.00053864,60]
[320809597,1711564241536,-25006.34037089,0.00054,2]
[320809598,1711564241545,-391.14305958,0.00054145,26]
[320809599,1711564241555,-309.79221573,0.00054146,2]
[320809600,1711564241566,-7500.0,0.00054146,3]
[320809601,1711564241576,-173.032803,0.00054148,113]
[320809602,1711564241585,-173.032803,0.00054148,113]
[320809603,1711564241594,-25641.16498239,0.0005416,2]
[320809604,1711564241604,-150.0,0.000542,11]
[320809605,1711564241617,-1000.0,0.00054214,120]
[320809606,1711564241626,-1794.57,0.00054236,2]
[320809607,1711564241635,-1794.57,0.00054236,2]
[320809608,1711564241644,-177.32581932,0.00054236,2]
[320809609,1711564241653,-224.80170329,0.00054243,2]
[320809610,1711564241664,-631.3725655,0.00054244,4]
[320809611,1711564241682,-455.119992,0.00054244,4]
[320809612,1711564241693,-405.4310304,0.00054244,4]
[320809613,1711564241729,-429.34741585,0.00054244,4]
[320809614,1711564241739,-300.14249133,0.00054244,4]
[320809615,1711564241748,-14347.70374766,0.00054244,4]
[320809616,1711564241757,-315.09971444,0.00054244,4]
[320809617,1711564241766,-4298.21142454,0.00054244,2]
[320809618,1711564241775,-2632.34542249,0.00054244,4]
[320809619,1711564241785,-2395.70672982,0.00054245,4]
[320809620,1711564241793,-188.40485152,0.00054246,120]
[320809621,1711564241802,-500.36936482,0.00054246,120]
[320809622,1711564241812,-500.0,0.00054246,120]
[320809623,1711564241820,-500.0,0.00054246,120]
[320809624,1711564241830,-500.0,0.00054246,120]
[320809625,1711564241840,-500.0,0.00054246,120]
[320809626,1711564241849,-500.0,0.00054246,120]
[320809627,1711564241863,-500.0,0.00054246,120]
[320809628,1711564241872,-500.0,0.00054246,120]
[320809629,1711564241882,-500.0,0.00054246,120]
[320809630,1711564241891,-500.0,0.00054246,120]
[320809631,1711564241902,-500.0,0.00054246,120]
[320809632,1711564241912,-500.0,0.00054246,120]
[320809633,1711564241921,-500.0,0.00054246,120]
[320809634,1711564241931,-604.55769724,0.00054246,120]
[320809635,1711564241940,-500.0,0.00054246,120]
[320809636,1711564241949,-500.0,0.00054246,120]
[320809637,1711564241959,-500.0,0.00054246,2]
[320809638,1711564241968,-500.0,0.00054246,120]
[320809639,1711564241977,-500.0,0.00054246,120]
[320809640,1711564241986,-500.0,0.00054246,120]
[320809641,1711564241997,-500.0,0.00054246,120]
[320809642,1711564242006,-500.0,0.00054246,120]
[320809643,1711564242014,-128.58663408,0.00054246,120]
[320809646,1711564243332,-276.33893943,0.00052722,120]
[320809647,1711564243347,-259.66106057,0.00052722,120]
[320809648,1711564243357,-371.41336592,0.00054246,120]
[320809649,1711564243367,-500.0,0.00054246,120]
[320809650,1711564243376,-500.0,0.00054246,120]
[320809651,1711564243386,-500.0,0.00054246,120]
[320809652,1711564243395,-500.0,0.00054246,120]
[320809653,1711564243404,-530.43,0.00054246,120]
[320809654,1711564243413,-517.66409499,0.00054246,120]
[320809655,1711564243423,-500.0,0.00054246,120]
[320809656,1711564243432,-500.0,0.00054246,120]
[320809657,1711564243441,-500.0,0.00054246,120]
[320809658,1711564243450,-226.82069499,0.00054246,120]
[320809659,1711564243459,-500.0,0.00054246,120]
[320809660,1711564243469,-500.0,0.00054246,120]
[320809661,1711564243478,-500.0,0.00054246,120]
[320809662,1711564243487,-189.82732149,0.00054246,120]
[320809663,1711564243496,-500.0,0.00054246,120]
[320809664,1711564243506,-500.0,0.00054246,120]
[320809665,1711564243515,-500.0,0.00054246,120]
[320809666,1711564243526,-500.0,0.00054246,120]
[320809667,1711564243535,-211.52,0.00054246,120]
[320809668,1711564243546,-500.0,0.00054246,120]
[320809669,1711564243556,-500.0,0.00054246,120]
[320809670,1711564243568,-500.0,0.00054246,120]
[320809671,1711564243579,-500.0,0.00054246,120]
[320809672,1711564243590,-500.0,0.00054246,120]
[320809673,1711564243601,-500.0,0.00054246,120]
[320809674,1711564243616,-500.0,0.00054246,120]
[320809675,1711564243626,-514.11,0.00054246,120]
[320809676,1711564243637,-500.0,0.00054246,120]
[320809677,1711564243649,-500.0,0.00054246,120]
[320809678,1711564243662,-533.96,0.00054246,120]
[320809679,1711564243673,-611.94,0.00054246,120]
[320809680,1711564243683,-500.0,0.00054246,120]
[320809681,1711564243694,-1032.02,0.00054246,120]
[320809682,1711564243705,-500.0,0.00054246,120]
[320809683,1711564243716,-476.85,0.00054246,120]
[320809684,1711564243726,-500.0,0.00054246,120]
[320809685,1711564243737,-500.0,0.00054246,120]
[320809686,1711564243747,-500.0,0.00054246,120]
[320809687,1711564243759,-500.0,0.00054246,120]
[320809688,1711564243769,-500.0,0.00054246,120]
[320809689,1711564243780,-500.0,0.00054246,120]
[320809690,1711564243792,-500.0,0.00054246,120]
[320809691,1711564243803,-500.0,0.00054246,120]
[320809692,1711564243814,-500.0,0.00054246,120]
[320809693,1711564243825,-500.0,0.00054246,120]
[320809694,1711564243835,-500.0,0.00054246,120]
[320809695,1711564243846,-500.0,0.00054246,120]
[320809696,1711564243856,-609.48,0.00054246,120]
[320809697,1711564243876,-500.0,0.00054246,120]
[320809698,1711564243887,-500.0,0.00054246,120]
[320809699,1711564243897,-500.0,0.00054246,120]
[320809700,1711564243908,-500.0,0.00054246,120]
[320809701,1711564243919,-500.0,0.00054246,120]
[320809703,1711564243929,-500.0,0.00054246,30]
[320809704,1711564243940,-500.0,0.00054246,120]
[320809706,1711564243950,-500.0,0.00054246,120]
[320809708,1711564243959,-500.0,0.00054246,120]
[320809711,1711564243970,-500.0,0.00054246,120]
[320809712,1711564243979,-500.0,0.00054246,120]
[320809714,1711564243989,-500.0,0.00054246,120]
[320809716,1711564243998,-500.0,0.00054246,120]
[320809718,1711564244007,-500.0,0.00054246,120]
[320809721,1711564244016,-500.0,0.00054246,120]
[320809723,1711564244027,-500.0,0.00054246,120]
[320809725,1711564244036,-500.0,0.00054246,120]
[320809727,1711564244046,-500.0,0.00054246,120]
[320809729,1711564244055,-500.0,0.00054246,120]
[320809731,1711564244064,-500.0,0.00054246,120]
[320809733,1711564244074,-500.0,0.00054246,120]
[320809735,1711564244083,-500.0,0.00054246,120]
[320809737,1711564244093,-500.0,0.00054246,120]
[320809739,1711564244102,-500.0,0.00054246,120]
[320809740,1711564244116,-500.0,0.00054246,120]
[320809743,1711564244126,-500.0,0.00054246,120]
[320809744,1711564244137,-500.0,0.00054246,120]
[320809746,1711564244146,-500.0,0.00054246,120]
[320809748,1711564244156,-514.56,0.00054246,120]
[320809750,1711564244165,-500.0,0.00054246,120]
[320809753,1711564244175,-501.93,0.00054246,120]
[320809755,1711564244184,-500.0,0.00054246,120]
[320809757,1711564244193,-500.0,0.00054246,120]
[320809758,1711564244202,-500.0,0.00054246,120]
[320809774,1711564244332,-500.0,0.00054246,120]
[320809776,1711564244342,-150.0,0.00054246,120]
[320809778,1711564244351,-500.0,0.00054246,120]
[320809780,1711564244362,-500.0,0.00054246,120]
[320809782,1711564244371,-607.54,0.00054246,120]
[320809784,1711564244380,-582.83,0.00054246,120]
[320809786,1711564244389,-500.0,0.00054246,120]
[320809788,1711564244399,-500.0,0.00054246,120]
[320809790,1711564244410,-500.0,0.00054246,120]
[320809792,1711564244421,-500.0,0.00054246,120]
[320809794,1711564244430,-565.0,0.00054246,120]
[320809796,1711564244442,-500.0,0.00054246,120]
[320809798,1711564244451,-500.0,0.00054246,120]
[320809800,1711564244460,-506.75473075,0.00054246,120]
[320809802,1711564244469,-500.0,0.00054246,120]
[320809804,1711564244478,-500.0,0.00054246,120]
[320809806,1711564244488,-500.0,0.00054246,120]
[320809808,1711564244497,-500.0,0.00054246,120]
[320809810,1711564244506,-500.0,0.00054246,120]
[320809812,1711564244516,-500.0,0.00054246,120]
[320809814,1711564244524,-500.0,0.00054246,120]
[320809816,1711564244534,-500.0,0.00054246,120]
[320809818,1711564244543,-500.0,0.00054246,120]
[320809820,1711564244553,-500.0,0.00054246,120]
[320809822,1711564244562,-500.0,0.00054246,120]
[320809824,1711564244573,-500.0,0.00054246,120]
[320809826,1711564244582,-500.0,0.00054246,120]
[320809828,1711564244592,-500.0,0.00054246,120]
[320809830,1711564244602,-500.0,0.00054246,120]
[320809832,1711564244613,-500.0,0.00054246,120]
[320809834,1711564244622,-502.21435445,0.00054246,120]
[320809836,1711564244631,-500.0,0.00054246,120]
[320809838,1711564244641,-504.05578351,0.00054246,120]
[320809840,1711564244651,-501.76623515,0.00054246,120]
[320809842,1711564244661,-500.0,0.00054246,120]
[320809844,1711564244670,-500.0,0.00054246,120]
[320809846,1711564244679,-500.0,0.00054246,120]
[320809848,1711564244688,-503.07796704,0.00054246,120]
[320809850,1711564244697,-500.0,0.00054246,120]
[320809852,1711564244706,-237.21709715,0.00054246,120]
[320809854,1711564244715,-500.0,0.00054246,120]
[320809857,1711564244724,-500.0,0.00054246,120]
[320809859,1711564244734,-500.0,0.00054246,120]
[320809861,1711564244743,-500.0,0.00054246,120]
[320809863,1711564244752,-501.80370438,0.00054246,120]
[320809865,1711564244761,-500.0,0.00054246,120]
[320809867,1711564244770,-325.60059481,0.00054246,120]
[320809869,1711564244779,-500.0,0.00054246,120]
[320809871,1711564244788,-500.0,0.00054246,120]
[320809873,1711564244798,-500.0,0.00054246,120]
[320809875,1711564244807,-500.0,0.00054246,120]
[320809877,1711564244816,-500.0,0.00054246,120]
[320809879,1711564244825,-641.76,0.00054246,120]
[320809881,1711564244835,-569.04,0.00054246,120]
[320809883,1711564244844,-500.0,0.00054246,120]
[320809885,1711564244853,-500.0,0.00054246,7]
[320809887,1711564244865,-500.0,0.00054246,120]
[320809889,1711564244874,-500.0,0.00054246,120]
[320809891,1711564244883,-500.0,0.00054246,120]
[320809893,1711564244892,-500.0,0.00054246,120]
[320809895,1711564244901,-500.0,0.00054246,120]
[320809897,1711564244910,-500.0,0.00054246,120]
[320809899,1711564244919,-500.0,0.00054246,120]
[320809901,1711564244929,-500.0,0.00054246,120]
[320809903,1711564244939,-500.0,0.00054246,120]
[320809905,1711564244948,-500.0,0.00054246,120]
[320809907,1711564244957,-500.0,0.00054246,120]
[320809909,1711564244966,-500.0,0.00054246,120]
[320809911,1711564244975,-500.0,0.00054246,120]
[320809913,1711564244984,-9529.08,0.00054246,120]
[320809915,1711564244994,-713.37,0.00054246,120]
[320809917,1711564245003,-500.0,0.00054246,120]
[320809919,1711564245012,-500.0,0.00054246,120]
[320809921,1711564245021,-521.76,0.00054246,120]
[320809923,1711564245030,-500.0,0.00054246,120]
[320809925,1711564245040,-500.0,0.00054246,120]
[320809927,1711564245050,-500.0,0.00054246,120]
[320809929,1711564245059,-500.0,0.00054246,120]
[320809931,1711564245068,-500.0,0.00054246,120]
[320809933,1711564245078,-500.0,0.00054246,120]
[320809935,1711564245087,-500.0,0.00054246,120]
[320809937,1711564245097,-500.0,0.00054246,120]
[320809939,1711564245106,-500.0,0.00054246,120]
[320809941,1711564245118,-540.66,0.00054246,120]